bitfinex/quotes_ETHUSD_20251008
["timestamp","ask_amount","ask_price","bid_price","bid_amount"]
[1759962255947,29.91432076,4531.7,4531.6,0.001]
[1759962256143,30.54792076,4531.7,4531.6,0.001]
[1759962256479,29.91380936,4531.7,4531.6,0.001]
[1759962256660,30.38809453,4531.7,4531.6,0.001]
[1759962256851,31.02169453,4531.7,4531.6,0.001]
[1759962259969,31.02172469,4531.7,4531.6,0.001]
[1759962262091,31.11011046,4531.7,4531.6,0.001]
[1759962270014,31.70386842,4531.7,4531.6,0.001]
[1759962270417,31.11011046,4531.7,4531.6,0.001]
[1759962271410,2.8405209,4531.2,4531.1,1e-08]
[1759962271584,14.93252424,4531.2,4531.1,1e-08]
[1759962271790,15.37382424,4531.2,4531.1,1e-08]
[1759962272185,15.46222603,4531.2,4531.1,1e-08]
[1759962274715,26.94422603,4531.2,4531.1,1e-08]
[1759962275013,29.00969427,4531.2,4531.1,1e-08]
[1759962275411,29.60409212,4531.2,4531.1,1e-08]
[1759962275715,28.37609427,4531.2,4531.1,1e-08]
[1759962276707,7.40225332,4531.2,4531.1,1e-08]
[1759962277033,25.10525332,4531.2,4531.1,1e-08]
[1759962277346,28.37709427,4531.2,4531.1,1e-08]
[1759962277932,25.10525332,4531.2,4531.1,1e-08]
[1759962283034,25.10425332,4531.2,4531.1,1e-08]
[1759962286568,25.10522378,4531.2,4531.1,1e-08]
[1759962291495,25.73882378,4531.2,4531.1,1e-08]
[1759962291657,26.33322163,4531.2,4531.1,1e-08]
[1759962294860,33.47322163,4531.2,4531.1,1e-08]
[1759962295465,33.47522163,4531.2,4531.1,1e-08]
[1759962296478,32.88082378,4531.2,4531.1,1e-08]
[1759962297587,33.47522163,4531.2,4531.1,1e-08]
[1759962298995,33.47525184,4531.2,4531.1,1e-08]
[1759962304696,32.88085399,4531.2,4531.1,1e-08]
[1759962310391,23.17983888,4531.2,4531.1,1e-08]
[1759962310690,23.26823969,4531.2,4531.1,1e-08]
[1759962310869,25.47516059,4531.2,4531.1,1e-08]
[1759962312506,27.39516059,4531.2,4531.1,1e-08]
[1759962314105,27.39516059,4531.2,4529.8,0.001]
[1759962314106,2.20735933,4530.3,4529.8,0.001]
[1759962314305,16.64020561,4530.3,4529.8,0.001]
[1759962314840,24.50221873,4530.3,4529.8,0.001]
[1759962315908,25.09805759,4530.3,4529.8,0.001]
[1759962316069,24.50221873,4530.3,4529.8,0.001]
[1759962316275,24.80120362,4530.3,4529.8,0.001]
[1759962317214,24.80120362,4530.3,4529.6,0.001]
[1759962317371,6.47916839,4529.7,4529.6,0.001]
[1759962317575,22.09404628,4529.7,4529.6,0.001]
[1759962317978,22.18247563,4529.7,4529.6,0.001]
[1759962318216,26.6418978,4529.7,4529.6,0.001]
[1759962321497,4.55855896,4529.7,4529.6,0.001]
[1759962321727,22.26455896,4529.7,4529.6,0.001]
[1759962322504,22.73958801,4529.7,4529.6,0.001]
[1759962324613,29.87958801,4529.7,4529.6,0.001]
[1759962325721,30.51318801,4529.7,4529.6,0.001]
[1759962325921,32.76495846,4529.7,4529.6,0.001]
[1759962328916,32.76470967,4529.7,4529.6,0.001]
[1759962329111,12.17333922,4529.7,4529.6,0.001]
[1759962329346,29.88133922,4529.7,4529.6,0.001]
[1759962329542,29.98033922,4529.7,4529.6,0.001]
[1759962331231,30.61393922,4529.7,4529.6,0.001]
[1759962332930,12.90593922,4529.7,4529.6,0.001]
[1759962333131,30.61393922,4529.7,4529.6,0.001]
[1759962333942,32.86570967,4529.7,4529.6,0.001]
[1759962339232,33.45918499,4529.7,4529.6,0.001]
[1759962339855,36.73777042,4529.7,4529.6,0.001]
[1759962340331,36.1442951,4529.7,4529.6,0.001]
[1759962343671,37.33597282,4529.7,4529.6,0.001]
[1759962345286,46.52797282,4529.7,4529.6,0.001]
[1759962347551,43.24938739,4529.7,4529.6,0.001]
[1759962347895,46.52797282,4529.7,4529.6,0.001]
[1759962349790,19.62797282,4529.7,4529.6,0.001]
[1759962349957,46.52797282,4529.7,4529.6,0.001]
[1759962355274,45.3362951,4529.7,4529.6,0.001]
[1759962359307,19.62797282,4529.7,4529.6,0.001]
[1759962359475,46.52997282,4529.7,4529.6,0.001]
[1759962361908,46.05519256,4529.7,4529.6,0.001]
[1759962362215,46.53118096,4529.7,4529.6,0.001]
[1759962366321,45.33950324,4529.7,4529.6,0.001]
[1759962368240,18.43750324,4529.7,4529.6,0.001]
[1759962368443,46.53059945,4529.7,4529.6,0.001]
[1759962369854,14.09824357,4529.7,4529.6,0.001]
[1759962370004,12.27354736,4529.7,4529.6,0.001]
[1759962370324,30.77865413,4529.7,4529.6,0.001]
[1759962371733,30.58011576,4529.7,4529.6,0.001]
[1759962373926,12.86911576,4529.7,4529.6,0.001]
[1759962374125,29.98354736,4529.7,4529.6,0.001]
[1759962374527,22.84354736,4529.7,4529.6,0.001]
[1759962376827,22.84380259,4529.7,4529.6,0.001]
[1759962382344,5.13380259,4529.7,4529.6,0.001]
[1759962382643,22.84280259,4529.7,4529.6,0.001]
[1759962383732,22.36655896,4529.7,4529.6,0.001]
[1759962385345,22.84236058,4529.7,4529.6,0.001]
[1759962385750,25.09413103,4529.7,4529.6,0.001]
[1759962386848,25.72773103,4529.7,4529.6,0.001]
[1759962387230,26.32303557,4529.7,4529.6,0.001]
[1759962389667,26.3227332,4529.7,4529.6,0.001]
[1759962390758,26.32274749,4529.7,4529.6,0.001]
[1759962391260,25.72744295,4529.7,4529.6,0.001]
[1759962391560,26.32245397,4529.7,4529.6,0.001]
[1759962391952,26.32246927,4529.7,4529.6,0.001]
[1759962392261,25.72745825,4529.7,4529.6,0.001]
[1759962393260,4.76130045,4529.6,4529.1,1e-08]
[1759962393561,7.40648086,4529.2,4529.1,1e-08]
[1759962393742,14.31088759,4529.2,4529.1,1e-08]
[1759962393942,14.40988759,4529.2,4529.1,1e-08]
[1759962394249,15.04348759,4529.2,4529.1,1e-08]
[1759962394432,17.74097475,4529.2,4529.1,1e-08]
[1759962394632,24.88097475,4529.2,4529.1,1e-08]
[1759962396244,24.08738725,4529.2,4529.1,1e-08]
[1759962396685,27.36597268,4529.2,4529.1,1e-08]
[1759962396987,28.15956018,4529.2,4529.1,1e-08]
[1759962397872,27.36597268,4529.2,4529.1,1e-08]
[1759962398264,24.08738725,4529.2,4529.1,1e-08]
[1759962400601,27.36597268,4529.2,4529.1,1e-08]
[1759962401907,24.60398831,4529.2,4529.1,1e-08]
[1759962402208,25.39637797,4529.2,4529.1,1e-08]
[1759962403701,25.396095,4529.2,4529.1,1e-08]
[1759962404404,34.587095,4529.2,4529.1,1e-08]
[1759962404615,33.79470534,4529.2,4529.1,1e-08]
[1759962405667,2.8417392,4528.7,4528.6,0.001]
[1759962405865,17.28324783,4528.7,4528.6,0.001]
[1759962406205,17.85804945,4528.7,4528.6,0.001]
[1759962406499,17.94650852,4528.7,4528.6,0.001]
[1759962406674,25.08650851,4528.7,4528.6,0.001]
[1759962406878,25.3854934,4528.7,4528.6,0.001]
[1759962410977,25.97915962,4528.7,4528.6,0.001]
[1759962411177,25.3854934,4528.7,4528.6,0.001]
[1759962413378,25.9793069,4528.7,4528.6,0.001]
[1759962413964,25.9791632,4528.7,4528.6,0.001]
[1759962415298,16.8653497,4528.7,4528.6,0.001]
[1759962415514,29.85157832,4528.7,4528.6,0.001]
[1759962415898,30.48517832,4528.7,4528.6,0.001]
[1759962416809,12.13757832,4528.7,4528.6,0.001]
[1759962417005,22.23577671,4528.7,4528.6,0.001]
[1759962417313,4.52177671,4528.7,4528.6,0.001]
[1759962417471,22.14731764,4528.7,4528.6,0.001]
[1759962417672,0.4453,4528.9,4528.6,0.001]
[1759962417873,3.551,4528.8,4528.6,0.001]
[1759962419118,0.1104,4528.7,4528.6,0.001]
[1759962424935,2.3185392,4528.7,4528.6,0.001]
[1759962425342,2.4175392,4528.7,4528.6,0.001]
[1759962433864,5.16624025,4528.7,4528.6,0.001]
[1759962434316,5.3722797,4528.7,4528.6,0.001]
[1759962434818,5.46072273,4528.7,4528.6,0.001]
[1759962437622,4.63202168,4528.7,4528.6,0.001]
[1759962441481,20.04502168,4528.7,4528.6,0.001]
[1759962441647,22.34202168,4528.7,4528.6,0.001]
[1759962442444,22.25357865,4528.7,4528.6,0.001]
[1759962443315,22.7290841,4528.7,4528.6,0.001]
[1759962443511,4.44457865,4528.7,4528.6,0.001]
[1759962443730,22.15457865,4528.7,4528.6,0.001]
[1759962444114,22.25357865,4528.7,4528.6,0.001]
[1759962445460,22.25412942,4528.7,4528.6,0.001]
[1759962448149,22.25418166,4528.7,4528.6,0.001]
[1759962450455,22.73027556,4528.7,4528.6,0.001]
[1759962450643,22.25418166,4528.7,4528.6,0.001]
[1759962450854,0.31704246,4528.7,4528.6,0.001]
[1759962451029,2.297,4528.7,4528.6,2.64798796]
[1759962451230,8.519,4528.7,4528.6,0.92543081]
[1759962451439,8.519,4528.7,4528.6,0.4398]
[1759962453266,8.519,4528.7,4528.6,0.001]
[1759962464977,8.519,4528.7,4528.6,0.4732]
[1759962466167,8.519,4528.7,4528.6,0.001]
[1759962466480,8.519,4528.7,4528.6,0.4732]
[1759962466656,8.519,4528.7,4528.6,0.001]
[1759962482407,8.618,4528.7,4528.6,0.001]
[1759962482786,11.03316035,4528.7,4528.6,0.001]
[1759962483113,12.368321,4528.7,4528.6,0.001]
[1759962491502,12.16129985,4528.7,4528.6,0.001]
[1759962491742,12.36820375,4528.7,4528.6,0.001]
[1759962493303,11.0330431,4528.7,4528.6,0.001]
[1759962494649,8.7259039,4528.7,4528.6,0.001]
[1759962494941,8.7249039,4528.7,4528.6,0.001]
[1759962495311,8.7249039,4528.7,4528.6,0.4421]
[1759962495511,8.7249039,4528.7,4528.6,3.71975451]
[1759962495512,8.518,4528.7,4528.6,3.71975451]
[1759962495712,8.518,4528.7,4528.6,4.53559429]
[1759962496137,8.518,4528.7,4528.6,1.25793978]
[1759962500446,0.1104,4528.8,4528.6,4.53559429]
[1759962500746,8.518,4528.7,4528.6,4.09449429]
[1759962501442,8.518,4528.7,4528.6,4.55767616]
[1759962501752,8.518,4528.7,4528.6,4.53559429]
[1759962503124,8.518,4528.7,4528.6,1.25793978]
[1759962503443,8.518,4528.7,4528.6,0.4421]
[1759962508833,8.518,4528.7,4528.6,0.001]
[1759962509846,6.518,4528.7,4528.6,0.001]
[1759962512642,9.03194772,4528.7,4528.6,0.001]
[1759962513054,9.50837231,4528.7,4528.6,0.001]
[1759962513225,11.00778124,4528.7,4528.6,0.001]
[1759962514339,14.28543575,4528.7,4528.6,0.001]
[1759962515234,16.20543575,4528.7,4528.6,0.001]
[1759962515657,16.29387878,4528.7,4528.6,0.001]
[1759962517462,16.92747878,4528.7,4528.6,0.001]
[1759962517663,24.06747877,4528.7,4528.6,0.001]
[1759962518648,24.06719239,4528.7,4528.6,0.001]
[1759962521865,20.78953788,4528.7,4528.6,0.001]
[1759962526959,20.78841075,4528.7,4528.6,0.001]
[1759962529083,20.78817881,4528.7,4528.6,0.001]
[1759962529581,20.31288135,4528.7,4528.6,0.001]
[1759962530084,20.78817596,4528.7,4528.6,0.001]
[1759962530785,20.31288135,4528.7,4528.6,0.001]
[1759962531190,20.7881952,4528.7,4528.6,0.001]
[1759962531351,20.7901952,4528.7,4528.6,0.001]
[1759962531555,20.31488135,4528.7,4528.6,0.001]
[1759962531852,20.79022257,4528.7,4528.6,0.001]
[1759962532053,20.31488135,4528.7,4528.6,0.001]
[1759962532261,20.79026788,4528.7,4528.6,0.001]
[1759962533696,20.79028445,4528.7,4528.6,0.001]
[1759962538059,21.38444149,4528.7,4528.6,0.001]
[1759962540358,20.79028445,4528.7,4528.6,0.001]
[1759962541704,14.86724508,4528.7,4528.6,0.001]
[1759962541858,31.07783615,4528.7,4528.6,0.001]
[1759962542300,30.48287552,4528.7,4528.6,0.001]
[1759962542600,31.07819062,4528.7,4528.6,0.001]
[1759962544175,31.07824155,4528.7,4528.6,0.001]
[1759962544501,30.48287552,4528.7,4528.6,0.001]
[1759962544705,32.73464597,4528.7,4528.6,0.001]
[1759962558025,4.99927553,4528.7,4528.6,0.001]
[1759962558228,22.6228325,4528.7,4528.6,0.001]
[1759962560604,22.62332832,4528.7,4528.6,0.001]
[1759962563232,4.81232832,4528.7,4528.6,0.001]
[1759962563403,22.52432832,4528.7,4528.6,0.001]
[1759962564200,22.04894179,4528.7,4528.6,0.001]
[1759962565310,22.14794179,4528.7,4528.6,0.001]
[1759962570307,4.33694179,4528.7,4528.6,0.001]
[1759962570513,12.85594179,4528.7,4528.6,0.001]
[1759962570714,12.95494179,4528.7,4528.6,0.001]
[1759962572513,12.95482996,4528.7,4528.6,0.001]
[1759962575950,11.03482996,4528.7,4528.6,0.001]
[1759962576851,10.93582996,4528.7,4528.6,0.001]
[1759962577057,11.03482996,4528.7,4528.6,0.001]
[1759962578162,10.93582996,4528.7,4528.6,0.001]
[1759962578364,2.41682996,4528.7,4528.6,0.001]
[1759962578532,10.93482996,4528.7,4528.6,0.001]
[1759962578928,10.7281392,4528.7,4528.6,0.001]
[1759962587239,10.8271392,4528.7,4528.6,0.001]
[1759962588747,11.03387007,4528.7,4528.6,0.001]
[1759962594279,10.93487007,4528.7,4528.6,0.001]
[1759962595777,8.72673087,4528.7,4528.6,0.001]
[1759962595964,10.93487007,4528.7,4528.6,0.001]
[1759962596982,8.72673087,4528.7,4528.6,0.001]
[1759962598379,8.72684152,4528.7,4528.6,0.001]
[1759962598981,10.93498072,4528.7,4528.6,0.001]
[1759962600346,0.002,4528.7,4528.6,0.001]
[1759962600550,8.52,4528.7,4528.6,0.81727848]
[1759962601203,0.002,4528.7,4528.6,3.02546644]
[1759962601492,0.002,4528.7,4528.6,3.11378457]
[1759962601652,0.123,4528.7,4528.6,3.11378457]
[1759962603302,0.123,4528.7,4528.6,6.39175067]
[1759962606495,0.123,4528.7,4528.6,0.46109661]
[1759962606737,0.123,4528.7,4528.6,0.1114]
[1759962607203,0.123,4528.7,4528.6,0.001]
[1759962611611,0.123,4528.7,4528.6,0.4455]
[1759962612494,0.123,4528.7,4528.6,5.48715406]
[1759962612710,3.884,4528.7,4528.6,5.93165406]
[1759962612881,3.884,4528.7,4528.6,6.75668795]
[1759962614118,0.002,4528.7,4528.6,6.75668795]
[1759962614278,5.139,4528.7,4528.6,6.75668795]
[1759962614479,5.139,4528.7,4528.6,4.10399999]
[1759962614691,5.139,4528.7,4528.6,4.54849999]
[1759962615216,5.139,4528.7,4528.6,1.27053389]
[1759962615513,5.139,4528.7,4528.6,0.001]
[1759962615713,7.5569392,4528.7,4528.6,0.001]
[1759962619223,5.2494,4528.7,4528.6,0.001]
[1759962619380,7.4575392,4528.7,4528.6,0.001]
[1759962620217,5.2494,4528.7,4528.6,0.001]
[1759962620412,0.1124,4528.7,4528.6,0.001]
[1759962620615,8.6294,4528.7,4528.6,0.001]
[1759962620819,8.6294,4528.7,4528.6,0.4455]
[1759962621015,8.6294,4528.7,4528.6,0.001]
[1759962621217,8.6294,4528.7,4528.6,0.4455]
[1759962626127,0.1124,4528.7,4528.6,0.4455]
[1759962626332,6.1924,4528.7,4528.6,0.4455]
[1759962626842,8.519,4528.7,4528.6,0.81784661]
[1759962627150,8.519,4528.7,4528.6,0.37334661]
[1759962627301,10.7271392,4528.7,4528.6,0.001]
[1759962629545,8.519,4528.7,4528.6,0.001]
[1759962629840,8.519,4528.7,4528.6,0.4299]
[1759962630404,8.519,4528.7,4528.6,0.001]
[1759962635147,10.8265392,4528.7,4528.6,0.001]
[1759962641144,11.03333989,4528.7,4528.6,0.001]
[1759962643045,10.93393989,4528.7,4528.6,0.001]
[1759962643447,10.93400576,4528.7,4528.6,0.001]
[1759962643674,11.03340576,4528.7,4528.6,0.001]
[1759962644045,8.72586656,4528.7,4528.6,0.001]
[1759962645340,8.519,4528.7,4528.6,0.001]
[1759962645544,8.72601918,4528.7,4528.6,0.001]
[1759962646140,10.93415838,4528.7,4528.6,0.001]
[1759962646567,8.72601918,4528.7,4528.6,0.001]
[1759962647372,0.20901918,4528.7,4528.6,0.001]
[1759962647549,8.519,4528.7,4528.6,0.4702]
[1759962647754,8.519,4528.7,4528.6,0.76278947]
[1759962651056,0.002,4528.7,4528.6,6.76364971]
[1759962651258,0.002,4528.7,4528.6,6.87404971]
[1759962651458,2.078,4528.7,4528.6,6.87404971]
[1759962651984,0.002,4528.7,4528.6,6.87404971]
[1759962652650,0.002,4528.7,4528.6,6.96245013]
[1759962662589,0.002,4528.7,4528.6,3.16977785]
[1759962662890,0.002,4528.7,4528.6,0.87318947]
[1759962663100,0.002,4528.7,4528.6,0.5806]
[1759962663301,0.002,4528.7,4528.6,2.78878796]
[1759962663509,0.502,4528.7,4528.6,2.78878796]
[1759962664317,0.502,4528.7,4528.6,0.1114]
[1759962664470,0.502,4528.7,4528.6,0.001]
[1759962664802,2.799,4528.7,4528.6,0.001]
[1759962665605,5.0071392,4528.7,4528.6,0.001]
[1759962665999,2.799,4528.7,4528.6,0.001]
[1759962666585,5.0071392,4528.7,4528.6,0.001]
[1759962666897,5.73855639,4528.7,4528.6,0.001]
[1759962667102,5.83755639,4528.7,4528.6,0.001]
[1759962668287,3.53041719,4528.7,4528.6,0.001]
[1759962668602,2.799,4528.7,4528.6,0.001]
[1759962669517,5.0071392,4528.7,4528.6,0.001]
[1759962670380,2.799,4528.7,4528.6,0.001]
[1759962670586,2.799,4528.7,4528.6,0.4753]
[1759962671815,2.799,4528.7,4528.6,0.49738187]
[1759962672248,2.799,4528.7,4528.6,0.4753]
[1759962675136,2.799,4528.7,4528.6,0.001]
[1759962677841,5.61788719,4528.7,4528.6,0.001]
[1759962678442,3.31074799,4528.7,4528.6,0.001]
[1759962678627,0.502,4528.7,4528.6,0.001]
[1759962678804,5.02,4528.7,4528.6,0.4753]
[1759962684855,5.02,4528.7,4528.6,0.001]
[1759962685458,5.02,4528.7,4528.6,0.4695]
[1759962685959,5.02,4528.7,4528.6,0.001]
[1759962686349,5.02,4528.7,4528.6,0.4695]
[1759962687862,5.02,4528.7,4528.6,0.001]
[1759962690255,7.2281392,4528.7,4528.6,0.001]
[1759962691185,7.3385392,4528.7,4528.6,0.001]
[1759962691347,8.30310044,4528.7,4528.6,0.001]
[1759962692676,8.40210044,4528.7,4528.6,0.001]
[1759962695044,8.30310044,4528.7,4528.6,0.001]
[1759962695373,7.3385392,4528.7,4528.6,0.001]
[1759962698678,7.4375392,4528.7,4528.6,0.001]
[1759962699673,7.64451872,4528.7,4528.6,0.001]
[1759962700061,7.54551872,4528.7,4528.6,0.001]
[1759962700440,7.3385392,4528.7,4528.6,0.001]
[1759962702176,7.54551292,4528.7,4528.6,0.001]
[1759962702379,7.64451292,4528.7,4528.6,0.001]
[1759962703873,8.62976855,4528.7,4528.6,0.001]
[1759962704078,7.64451292,4528.7,4528.6,0.001]
[1759962704275,7.53889707,4528.7,4528.6,0.001]
[1759962705061,7.04353049,4528.7,4528.6,0.001]
[1759962705495,7.14253049,4528.7,4528.6,0.001]
[1759962709999,4.93439129,4528.7,4528.6,0.001]
[1759962710171,4.83539129,4528.7,4528.6,0.001]
[1759962710572,7.04353049,4528.7,4528.6,0.001]
[1759962711192,7.14253049,4528.7,4528.6,0.001]
[1759962713828,7.14453049,4528.7,4528.6,0.001]
[1759962714198,7.04553049,4528.7,4528.6,0.001]
[1759962714801,0.31939129,4528.7,4528.6,0.001]
[1759962714983,8.6284,4528.7,4528.6,0.32887954]
[1759962715189,8.83539129,4528.7,4528.6,0.446]
[1759962715989,9.33539129,4528.7,4528.6,0.446]
[1759962720309,0.502,4528.7,4528.6,2.65418796]
[1759962721251,0.502,4528.7,4528.6,4.57418796]
[1759962721413,0.002,4528.7,4528.6,4.57418796]
[1759962721614,0.002,4528.7,4528.6,6.08221349]
[1759962722837,0.002,4528.7,4528.6,9.36000885]
[1759962724332,0.002,4528.7,4528.6,6.08221349]
[1759962725148,0.002,4528.7,4528.6,9.36000885]
[1759962725635,0.002,4528.7,4528.6,6.08221349]
[1759962726943,0.002,4528.7,4528.6,8.85800885]
[1759962727646,0.002,4528.7,4528.6,1.45202553]
[1759962727830,0.002,4528.7,4528.6,0.446]
[1759962729221,0.002,4528.7,4528.6,2.65418796]
[1759962729428,0.002,4528.7,4528.6,2.67626983]
[1759962730356,0.002,4528.7,4528.6,2.76458796]
[1759962730561,0.002,4528.7,4528.6,7.96238332]
[1759962730858,0.002,4528.7,4528.6,10.29502837]
[1759962732639,0.002,4529.1,4529.0,2.20799293]
[1759962732973,0.002,4529.1,4529.0,17.03326357]
[1759962733138,0.002,4529.1,4529.0,17.45618365]
[1759962733341,0.002,4529.1,4529.0,17.5445661]
[1759962733539,0.002,4529.1,4529.0,19.51982906]
[1759962733938,0.002,4529.1,4529.0,19.41022906]
[1759962739180,0.002,4529.1,4529.0,13.19222906]
[1759962739345,0.002,4529.1,4529.0,19.40922906]
[1759962740580,0.002,4529.1,4529.0,13.19222906]
[1759962740792,0.002,4529.1,4529.0,19.40922906]
[1759962741283,0.002,4529.1,4529.0,14.2114337]
[1759962741481,0.002,4529.1,4529.0,16.1314337]
[1759962741682,0.002,4529.1,4529.0,19.40922906]
[1759962742395,0.002,4529.1,4529.0,9.82605125]
[1759962743498,0.002,4529.1,4529.0,7.85078829]
[1759962744098,0.002,4529.1,4529.0,7.96038829]
[1759962746781,0.002,4529.1,4529.0,11.23818365]
[1759962747707,0.002,4529.1,4529.0,7.96038829]
[1759962760521,0.002,4529.1,4529.0,14.17738829]
[1759962760699,0.002,4529.1,4529.0,15.82477297]
[1759962767935,0.002,4529.1,4529.0,12.54697761]
[1759962768929,0.002,4529.1,4529.0,6.32997761]
[1759962773045,0.002,4529.1,4529.0,2.76059293]
[1759962773739,0.502,4529.1,4529.0,2.76059293]
[1759962776027,0.502,4529.1,4529.0,0.5526]
[1759962776231,0.502,4529.1,4529.0,0.1096]
[1759962776432,0.502,4529.1,4529.0,0.5438]
[1759962777170,0.502,4529.1,4528.6,0.001]
[1759962777348,2.80895732,4529.1,4528.6,0.001]
[1759962777529,0.28,4529.0,4528.6,0.001]
[1759962778120,0.379,4529.0,4528.6,0.001]
[1759962778671,0.28,4529.0,4528.6,2.20914798]
[1759962778877,0.502,4529.1,4528.6,2.64334798]
[1759962779367,0.502,4529.1,4528.7,0.45628139]
[1759962779650,0.502,4529.1,4528.8,2.20809044]
[1759962779864,0.502,4529.1,4528.9,0.4342]
[1759962780025,0.502,4529.1,4529.0,0.4342]
[1759962782336,1.41476,4529.1,4528.6,0.001]
[1759962782536,0.502,4529.1,4528.6,0.001]
[1759962784454,0.502,4529.1,4528.7,2.64230204]
[1759962784656,6.218,4529.0,4528.8,0.0220809]
[1759962784866,6.218,4529.0,4528.9,0.4342]
[1759962787688,6.218,4529.0,4528.9,2.64224168]
[1759962787989,6.218,4529.0,4528.9,0.4342]
[1759962790183,6.218,4529.0,4528.6,0.001]
[1759962791073,7.13076,4529.0,4528.6,0.001]
[1759962791273,7.24116,4529.0,4528.6,0.001]
[1759962791995,7.24116,4529.0,4528.6,0.4352]
[1759962793790,7.24116,4529.0,4528.6,0.001]
[1759962794296,7.34016,4529.0,4528.6,0.001]
[1759962795091,7.24116,4529.0,4528.6,0.001]
[1759962795302,3.31119628,4528.9,4528.6,0.001]
[1759962796161,1.103116,4528.9,4528.6,0.001]
[1759962796806,1.004116,4528.9,4528.6,0.001]
[1759962796963,6.3304,4529.0,4528.6,0.001]
[1759962798387,8.53839546,4529.0,4528.6,0.001]
[1759962799693,6.3304,4529.0,4528.6,0.001]
[1759962799872,0.1124,4529.0,4528.6,2.64338227]
[1759962800191,6.476,4528.9,4528.6,2.64338227]
[1759962800970,6.476,4528.9,4528.6,0.4352]
[1759962801722,8.515,4528.8,4528.6,0.02308187]
[1759962801875,8.515,4528.8,4528.7,2.6423392]
[1759962802389,6.218,4528.8,4528.7,2.6423392]
[1759962807196,6.218,4528.8,4528.6,0.1114]
[1759962810230,6.218,4528.8,4528.6,2.79138134]
[1759962810647,6.218,4528.8,4528.7,0.4718]
[1759962814705,6.218,4528.8,4528.6,0.1114]
[1759962816635,6.218,4528.8,4528.6,0.001]
[1759962820745,2.41514792,4528.7,4528.6,0.001]
[1759962822349,0.20700872,4528.7,4528.6,0.001]
[1759962823742,2.41514792,4528.7,4528.6,0.001]
[1759962824151,2.51414792,4528.7,4528.6,0.001]
[1759962825362,2.3071392,4528.7,4528.6,0.001]
[1759962826056,9.79053412,4528.8,4528.6,0.001]
[1759962827733,2.2081392,4528.7,4528.6,0.001]
[1759962828838,2.3071392,4528.7,4528.6,0.001]
[1759962830161,9.79054914,4528.8,4528.6,0.001]
[1759962830574,2.2081392,4528.7,4528.6,0.001]
[1759962832874,2.3071392,4528.7,4528.6,0.001]
[1759962837258,9.79255062,4528.8,4528.6,0.001]
[1759962837788,8.516,4528.7,4528.6,0.001]
[1759962840302,0.002,4528.8,4528.6,0.4355]
[1759962840500,0.002,4528.8,4528.7,3.01394847]
[1759962840692,0.002,4528.8,4528.7,5.04434847]
[1759962841071,0.002,4528.8,4528.7,5.54634847]
[1759962844605,0.002,4528.8,4528.7,8.71354118]
[1759962844769,0.002,4528.8,4528.7,8.82394118]
[1759962845096,0.002,4528.8,4528.7,5.54634847]
[1759962845286,0.002,4528.8,4528.7,8.82394118]
[1759962851230,0.002,4529.1,4529.0,2.20799293]
[1759962851525,0.002,4529.1,4529.0,18.1350468]
[1759962851734,0.002,4529.1,4529.0,18.11296688]
[1759962851935,0.002,4529.1,4529.0,18.74459976]
[1759962852100,0.002,4529.1,4529.0,18.63584523]
[1759962862913,0.002,4529.1,4529.0,9.14125252]
[1759962863112,0.002,4529.1,4529.0,15.35725252]
[1759962863316,0.002,4529.1,4529.0,18.63484523]
[1759962863514,0.002,4529.1,4529.0,5.86365981]
[1759962863760,0.002,4529.1,4529.0,8.94327417]
[1759962863958,0.002,4529.1,4529.0,12.22086688]
[1759962864265,0.002,4529.1,4529.0,8.94327417]
[1759962866326,0.002,4529.1,4529.0,7.84008564]
[1759962868519,0.002,4529.1,4529.0,7.84108564]
[1759962873682,0.002,4529.1,4529.0,7.95068564]
[1759962879255,0.002,4529.1,4529.0,11.22827835]
[1759962879566,0.002,4529.1,4529.0,7.95068564]
[1759962879857,0.002,4529.1,4529.0,9.62529418]
[1759962881188,0.002,4529.1,4529.0,4.67309293]
[1759962881483,0.002,4529.1,4529.0,0.1106]
[1759962884180,6.218,4529.1,4529.0,0.001]
[1759962884754,6.718,4529.1,4529.0,0.001]
[1759962885013,7.40066,4529.1,4529.0,0.001]
[1759962885692,7.50526,4529.1,4529.0,0.001]
[1759962886176,7.40066,4529.1,4529.0,0.001]
[1759962890705,6.718,4529.1,4529.0,0.001]
[1759962891105,6.718,4529.1,4529.0,2.20899293]
[1759962891419,0.502,4529.1,4529.0,2.78199293]
[1759962891631,0.002,4529.1,4529.0,2.80407285]
[1759962893908,0.002,4529.1,4529.0,2.78199293]
[1759962900618,0.123,4529.1,4529.0,2.78199293]
[1759962900820,0.002,4529.1,4529.0,3.66237938]
[1759962902723,0.002,4529.1,4529.0,1.45438645]
[1759962902906,0.002,4529.1,4529.0,2.78199293]
[1759962903341,0.002,4529.1,4529.0,2.80407285]
[1759962903644,0.002,4529.1,4529.0,2.78199293]
[1759962904306,0.002,4529.1,4529.0,2.80407285]
[1759962905717,0.002,4529.1,4529.0,3.68445969]
[1759962906523,0.002,4529.1,4529.0,5.60445969]
[1759962906846,0.002,4529.1,4529.0,5.58237977]
[1759962907016,0.002,4529.1,4529.0,5.67076613]
[1759962917764,0.002,4529.1,4529.0,5.58237977]
[1759962921970,0.002,4529.1,4529.0,5.67076632]